bitfinex-derivatives/quotes_BTCF0:USTF0_20250704
["timestamp","ask_amount","ask_price","bid_price","bid_amount"]
[1751611580902,0.67840598,109000.0,108990.0,1.92111853]
[1751611581104,0.32,109000.0,108990.0,2.08585825]
[1751611581302,0.32,109000.0,108990.0,1.9210702]
[1751611581504,0.32,109000.0,108990.0,2.01251853]
[1751611581713,0.32,109000.0,108990.0,2.02978528]
[1751611582116,0.32,109000.0,108990.0,2.1030884]
[1751611582311,0.32,109000.0,108990.0,2.01164007]
[1751611582708,0.325,109000.0,108990.0,2.01264007]
[1751611583214,0.324,109000.0,108990.0,2.01264007]
[1751611584117,0.325,109000.0,108990.0,2.01264007]
[1751611590919,0.3556,109000.0,108990.0,1.76252556]
[1751611592419,0.3556,109000.0,108990.0,0.92852556]
[1751611592620,0.3556,109000.0,108990.0,1.76244556]
[1751611593826,0.3556,109000.0,108990.0,2.01256007]
[1751611600925,0.3556,109000.0,108990.0,1.51233105]
[1751611601127,0.3556,109000.0,108990.0,1.22233105]
[1751611601326,0.3871,109000.0,108990.0,1.72244556]
[1751611601532,0.3871,109000.0,108990.0,1.77252556]
[1751611602129,0.3871,109000.0,108990.0,1.45252556]
[1751611602333,0.3871,109000.0,108990.0,1.47252556]
[1751611602537,0.3871,109000.0,108990.0,1.75252556]
[1751611603136,0.3871,109000.0,108990.0,1.45252556]
[1751611603326,0.3871,109000.0,108990.0,1.71172556]
[1751611603634,1.03031451,109000.0,108990.0,1.38148556]
[1751611603832,1.03031451,109000.0,108990.0,1.64148556]
[1751611604030,0.7802,109000.0,108990.0,1.64148556]
[1751611604234,0.7802,109000.0,108990.0,1.38148556]
[1751611604933,0.7802,109000.0,108990.0,1.65148556]
[1751611608139,0.4602,109000.0,108990.0,1.36148556]
[1751611608533,0.8102,109000.0,108990.0,1.63148556]
[1751611610139,0.8102,109000.0,108990.0,1.55778244]
[1751611611538,0.4494,109000.0,108990.0,1.55778244]
[1751611611739,0.4794,109000.0,108990.0,1.56778244]
[1751611612139,0.4156,109000.0,108990.0,1.81789695]
[1751611612341,0.4156,109000.0,108990.0,1.97364528]
[1751611615247,0.0356,109000.0,108990.0,1.97364528]
[1751611615546,0.4056,109000.0,108990.0,1.97364528]
[1751611617143,0.0856,109000.0,108990.0,1.97364528]
[1751611617349,0.4056,109000.0,108990.0,1.97364528]
[1751611620964,0.4056,109000.0,108990.0,2.33444528]
[1751611621470,0.005,109000.0,108990.0,2.67444528]
[1751611622468,0.005,109000.0,108990.0,2.34444528]
[1751611622764,0.005,109000.0,108990.0,2.67444528]
[1751611622965,0.005,109000.0,108990.0,2.34444528]
[1751611625766,0.005,109000.0,108990.0,2.70444528]
[1751611630970,0.01945138,109010.0,109000.0,1.74975041]
[1751611631561,0.02245138,109010.0,109000.0,1.75075041]
[1751611631766,0.02345138,109010.0,109000.0,1.75075041]
[1751611632674,0.02245138,109010.0,109000.0,1.75075041]
[1751611632874,0.02245138,109010.0,109000.0,1.75275041]
[1751611633874,0.02045138,109010.0,109000.0,1.75675041]
[1751611634275,0.02045138,109010.0,109000.0,1.66506947]
[1751611634478,0.001,109010.0,109000.0,1.66506947]
[1751611634677,0.001,109010.0,109000.0,1.66606791]
[1751611634976,0.001,109010.0,109000.0,1.75774885]
[1751611635372,0.001,109010.0,109000.0,1.66606791]
[1751611635674,0.001,109010.0,109000.0,0.91572438]
[1751611635877,0.001,109010.0,109000.0,1.66606791]
[1751611636666,0.001,109010.0,109000.0,1.73935056]
[1751611638075,0.001,109010.0,109000.0,2.12774885]
[1751611638378,0.08086432,109030.0,109020.0,0.183394]
[1751611638581,0.51524219,109030.0,109020.0,2.27144374]
[1751611638782,0.87604219,109030.0,109020.0,1.97389143]
[1751611639082,0.87604219,109030.0,109020.0,1.94314218]
[1751611639283,0.87604219,109030.0,109020.0,1.95213109]
[1751611639580,0.87704219,109030.0,109020.0,1.92063109]
[1751611639774,0.87704219,109030.0,109020.0,1.66063109]
[1751611640081,0.87704219,109030.0,109020.0,1.04687109]
[1751611640280,0.87704219,109030.0,109020.0,1.88063109]
[1751611641378,0.87604219,109030.0,109020.0,1.88063109]
[1751611641573,0.87604219,109030.0,109020.0,1.88263109]
[1751611641784,0.87604219,109030.0,109020.0,1.63230635]
[1751611642379,0.87604219,109030.0,109020.0,1.55904563]
[1751611642781,0.85687787,109030.0,109020.0,1.55904563]
[1751611644980,0.85687787,109030.0,109020.0,1.61395449]
[1751611647881,0.49607787,109030.0,109020.0,1.55904563]
[1751611648486,0.85687787,109030.0,109020.0,1.61395583]
[1751611649086,0.85687787,109030.0,109020.0,1.55904563]
[1751611650087,0.85687787,109030.0,109020.0,1.63230635]
[1751611651190,0.85687787,109030.0,109020.0,1.55904563]
[1751611652483,0.85687787,109030.0,109020.0,1.63230635]
[1751611653689,0.85687787,109030.0,109020.0,1.38240207]
[1751611653888,0.85687787,109030.0,109020.0,1.41230635]
[1751611654385,0.85687787,109030.0,109020.0,1.35230635]
[1751611654690,0.85687787,109030.0,109020.0,1.65230635]
[1751611655691,0.85687787,109030.0,109020.0,1.35230635]
[1751611655885,0.85687787,109030.0,109020.0,1.17240207]
[1751611656086,0.85687787,109030.0,109020.0,1.10240207]
[1751611656292,0.85687787,109030.0,109020.0,1.41240207]
[1751611656493,0.85687787,109030.0,109020.0,1.42230635]
[1751611656990,0.85687787,109030.0,109020.0,1.64950901]
[1751611658194,0.85687787,109030.0,109020.0,0.81574901]
[1751611658391,0.85687787,109030.0,109020.0,1.64934901]
[1751611660395,0.85687787,109030.0,109020.0,1.64972686]
[1751611661799,0.85687787,109030.0,109020.0,1.89962816]
[1751611663295,0.85687787,109030.0,109020.0,0.78602816]
[1751611663599,0.85687787,109030.0,109020.0,1.67962816]
[1751611664598,0.85687787,109030.0,109020.0,1.91962816]
[1751611664898,0.85687787,109030.0,109020.0,1.67962816]
[1751611665198,0.87627299,109030.0,109020.0,1.67962816]
[1751611665398,0.87627299,109030.0,109020.0,1.90962816]
[1751611665599,0.87627299,109030.0,109020.0,1.68962816]
[1751611665802,0.87627299,109030.0,109020.0,1.87962816]
[1751611667696,0.87627299,109030.0,109020.0,1.8806266]
[1751611668901,0.87627299,109030.0,109020.0,1.9137266]
[1751611671701,0.87627299,109030.0,109020.0,1.9442266]
[1751611673213,0.87627299,109030.0,109020.0,1.44442102]
[1751611673412,0.81457299,109030.0,109020.0,1.9442266]
[1751611673613,0.81457299,109030.0,109020.0,1.9774266]
[1751611673809,0.78207299,109030.0,109020.0,2.22732939]
[1751611674308,0.34939512,109030.0,109020.0,2.58812939]
[1751611674614,0.01939512,109030.0,109020.0,2.60644457]
[1751611680915,0.01939512,109030.0,109020.0,2.51486867]
[1751611681116,0.01939512,109030.0,109020.0,2.58813745]
[1751611684433,0.01939512,109030.0,109020.0,2.51486867]
[1751611687021,0.01939512,109030.0,109020.0,2.58811377]
[1751611687322,0.01939512,109030.0,109020.0,2.51486867]
[1751611688220,0.01939512,109030.0,109020.0,2.60644457]
[1751611688621,0.01939512,109030.0,109020.0,1.8567362]
[1751611688823,0.01939512,109030.0,109020.0,2.60644457]
[1751611691425,0.01939512,109030.0,109020.0,2.51486867]
[1751611692626,0.01939512,109030.0,109020.0,2.84486867]
[1751611692825,0.01939512,109030.0,109020.0,2.93644457]
[1751611694730,2e-08,109030.0,109020.0,3.06644457]
[1751611694922,0.001,109040.0,109030.0,0.1833768]
[1751611695121,0.001,109040.0,109030.0,1.91591468]
[1751611695322,0.001,109040.0,109030.0,1.56425828]
[1751611695526,0.001,109040.0,109030.0,1.56525672]
[1751611695830,0.001,109040.0,109030.0,1.89525672]
[1751611696125,0.002,109040.0,109030.0,1.89525672]
[1751611696322,1e-07,109040.0,109030.0,2.24515951]
[1751611698024,1e-07,109040.0,109030.0,1.99525672]
[1751611698925,1e-07,109040.0,109030.0,1.66525672]
[1751611699528,1e-07,109040.0,109030.0,2.16525672]
[1751611700737,0.0010001,109040.0,109030.0,2.16625516]
[1751611703841,0.0010001,109040.0,109030.0,2.18378307]
[1751611704040,0.0010001,109040.0,109030.0,2.09220717]
[1751611708033,0.0010001,109040.0,109030.0,2.09183021]
[1751611711051,0.0010001,109040.0,109030.0,1.59202463]
[1751611711246,0.0010001,109040.0,109030.0,1.99183021]
[1751611711447,0.0317001,109040.0,109030.0,1.92603021]
[1751611711746,0.0959001,109040.0,109030.0,1.92603021]
[1751611712247,0.4659001,109040.0,109030.0,1.92603021]
[1751611712449,0.4659001,109040.0,109030.0,1.89313021]
[1751611713551,0.4659001,109040.0,109030.0,3.05150611]
[1751611714549,0.0959001,109040.0,109030.0,3.05150611]
[1751611714852,0.0959001,109040.0,109030.0,3.08370611]
[1751611715150,0.0959001,109040.0,109030.0,3.11510611]
[1751611718544,0.0959001,109040.0,109030.0,3.47590611]
[1751611720652,0.0959001,109040.0,109030.0,3.38433021]
[1751611721347,0.0959001,109040.0,109030.0,3.51235788]
[1751611723849,0.0959001,109040.0,109030.0,3.47588231]
[1751611724950,0.4259001,109040.0,109030.0,3.41228231]
[1751611725555,0.4259,109040.0,109030.0,2.91228231]
[1751611725746,0.4259,109040.0,109030.0,2.91328231]
[1751611726261,0.0959,109040.0,109030.0,2.91332231]
[1751611726757,0.0949,109040.0,109030.0,2.91532231]
[1751611729061,0.0949,109040.0,109030.0,2.94822231]
[1751611730058,0.0949,109040.0,109030.0,2.44841673]
[1751611730258,0.0949,109040.0,109030.0,2.94822231]
[1751611731767,0.0949,109040.0,109030.0,2.94822357]
[1751611733263,0.0949,109040.0,109030.0,2.85667147]
[1751611733463,0.0949,109040.0,109030.0,2.98469914]
[1751611735161,0.0949,109040.0,109030.0,2.98472646]
[1751611738070,0.0949,109040.0,109030.0,3.01602646]
[1751611738767,0.0949,109040.0,109030.0,2.99884693]
[1751611738963,0.0949,109040.0,109030.0,3.01616682]
[1751611741071,0.0639,109040.0,109030.0,3.01616682]
[1751611741570,0.0307,109040.0,109030.0,3.01616682]
[1751611741771,0.0307,109040.0,109030.0,3.04706682]
[1751611751576,0.0307,109040.0,109030.0,2.68626682]
[1751611756379,0.0649,109050.0,109040.0,0.1833561]
[1751611756684,0.4565,109050.0,109040.0,1.40658188]
[1751611757487,0.4575,109050.0,109040.0,1.40658188]
[1751611758489,0.4585,109050.0,109040.0,1.40658188]
[1751611762391,0.0985,109050.0,109040.0,1.40658188]
[1751611762589,0.4285,109050.0,109040.0,1.40658188]
[1751611762986,0.4285,109050.0,109040.0,1.43698188]
[1751611764289,0.332,109050.0,109040.0,1.43698188]
[1751611764594,0.332,109050.0,109040.0,1.46738188]
[1751611764891,0.332,109050.0,109040.0,1.49778188]
[1751611766691,0.4286,109050.0,109040.0,1.46738188]
[1751611766898,0.4286,109050.0,109040.0,1.46838032]
[1751611767199,0.4286,109050.0,109040.0,1.43798032]
[1751611767593,0.4286,109050.0,109040.0,1.4196578]
[1751611769403,0.4286,109050.0,109040.0,1.4196578]
[1751611770395,0.4286,109050.0,109040.0,1.0588578]
[1751611770606,0.4286,109050.0,109040.0,1.4196578]
[1751611772709,0.4286,109050.0,109040.0,0.91985222]
[1751611772903,0.4286,109050.0,109040.0,1.4196578]
[1751611775911,0.4286,109050.0,109040.0,1.34635856]
[1751611776112,0.4286,109050.0,109040.0,1.43798032]
[1751611783515,0.4286,109050.0,109040.0,1.46858032]
[1751611785621,0.4286,109050.0,109040.0,1.49928032]
[1751611786418,0.4286,109050.0,109040.0,1.13848032]
[1751611786622,0.4286,109050.0,109040.0,1.49928032]
[1751611787522,0.3962,109050.0,109040.0,1.49928032]
[1751611787923,0.3632,109050.0,109040.0,1.49928032]
[1751611797934,0.3632,109050.0,109040.0,0.99947474]
[1751611798229,0.3632,109050.0,109040.0,1.49928032]
[1751611801835,0.332,109050.0,109040.0,1.49928032]
[1751611805635,0.332,109050.0,109040.0,1.57262744]
[1751611805838,0.332,109050.0,109040.0,1.48100568]
[1751611810945,0.332,109050.0,109040.0,0.9812001]
[1751611811138,0.3628,109050.0,109040.0,1.48100568]
[1751611813557,0.3628,109050.0,109040.0,1.40765856]
[1751611815755,0.3941,109050.0,109040.0,1.40765856]
[1751611818259,0.3941,109050.0,109040.0,1.49928032]
[1751611820558,0.5774383,109050.0,109040.0,1.43818032]
[1751611821056,0.6101383,109050.0,109040.0,1.43818032]
[1751611822659,0.6101383,109050.0,109040.0,0.93837474]
[1751611822861,0.91004109,109050.0,109040.0,1.43818032]
[1751611823060,0.91004109,109050.0,109040.0,1.88030032]
[1751611824960,0.91004109,109050.0,109040.0,0.28697474]
[1751611825159,0.91004109,109050.0,109040.0,0.44525577]
[1751611828564,0.91004109,109050.0,109040.0,0.69515856]
[1751611829270,0.91004109,109050.0,109040.0,0.76849226]
[1751611830467,0.6601383,109050.0,109040.0,0.76849226]
[1751611830668,0.6601383,109050.0,109040.0,0.69515856]
[1751611830866,0.6601383,109050.0,109040.0,0.78678032]
[1751611833069,0.91004109,109050.0,109040.0,0.78678032]
[1751611835473,0.91004109,109050.0,109040.0,0.28697474]
[1751611835673,0.91004109,109050.0,109040.0,0.78678032]
[1751611836175,0.6601383,109050.0,109040.0,0.78678032]
[1751611836673,0.91004109,109050.0,109040.0,0.78678032]
[1751611837268,0.6601383,109050.0,109040.0,0.78678032]
[1751611837670,0.91004109,109050.0,109040.0,0.78678032]
[1751611838069,0.6601383,109050.0,109040.0,0.78678032]
[1751611839476,0.6601383,109050.0,109040.0,0.28697474]
[1751611839776,0.91004109,109050.0,109040.0,0.78678032]
[1751611839974,0.6601383,109050.0,109040.0,0.78678032]
[1751611840168,0.91004109,109050.0,109040.0,0.78678032]
[1751611841269,0.6601383,109050.0,109040.0,0.78678032]
[1751611841576,0.91004109,109050.0,109040.0,0.78678032]
[1751611841876,0.91004109,109050.0,109040.0,0.28697474]
[1751611842077,0.6601383,109050.0,109040.0,0.78678032]
[1751611842374,0.6601383,109050.0,109040.0,0.69515856]
[1751611846879,0.6601383,109050.0,109040.0,0.76847295]
[1751611848786,0.91004109,109050.0,109040.0,0.69515856]
[1751611848986,0.91004109,109050.0,109040.0,0.78678032]
[1751611852587,0.91004109,109050.0,109040.0,0.28697474]
[1751611852889,0.91004109,109050.0,109040.0,0.78678032]
[1751611853090,0.91004109,109050.0,109040.0,0.69515856]
[1751611853490,0.91004109,109050.0,109040.0,0.78678032]
[1751611853692,0.6601383,109050.0,109040.0,0.78678032]
[1751611857594,0.6601383,109050.0,109040.0,0.81938032]
[1751611861192,0.6601383,109050.0,109040.0,0.80106929]
[1751611862097,0.91004109,109050.0,109040.0,0.80106929]
[1751611862588,0.6601383,109050.0,109040.0,0.80106929]
[1751611868105,0.4768,109050.0,109040.0,0.80106929]
[1751611868404,0.4768,109050.0,109040.0,1.09106929]
[1751611868594,0.4768,109050.0,109040.0,1.12186929]
[1751611871003,0.4768,109050.0,109040.0,1.04855856]
[1751611871197,0.4768,109050.0,109040.0,1.14018032]
[1751611871796,0.6601383,109050.0,109040.0,1.14018032]
[1751611872702,0.4768,109050.0,109040.0,1.14018032]
[1751611874804,0.6601383,109050.0,109040.0,1.14018032]
[1751611875814,0.4768,109050.0,109040.0,1.14018032]
[1751611880219,0.4441,109050.0,109040.0,1.14018032]
[1751611880419,0.4441,109050.0,109040.0,1.17218032]
[1751611880919,0.6274383,109050.0,109040.0,1.17218032]
[1751611881120,0.6274383,109050.0,109040.0,0.67237474]
[1751611881318,0.87734109,109050.0,109040.0,0.96218032]
[1751611881514,0.6274383,109050.0,109040.0,0.96218032]
[1751611881718,0.6274383,109050.0,109040.0,0.87055856]
[1751611883322,0.6274383,109050.0,109040.0,0.37075298]
[1751611883511,0.6274383,109050.0,109040.0,0.87055856]
[1751611887420,0.4441,109050.0,109040.0,0.87055856]
[1751611889731,0.4441,109050.0,109040.0,0.92055856]
[1751611892033,0.4441,109050.0,109040.0,0.42075298]
[1751611892230,0.4441,109050.0,109040.0,0.92055856]
[1751611892829,0.4128,109050.0,109040.0,0.92055856]
[1751611893132,0.4128,109050.0,109040.0,0.99385359]
[1751611893325,0.4128,109050.0,109040.0,2.07719638]
[1751611893326,0.002,109050.0,109040.0,2.07719638]
[1751611893526,0.182,109050.0,109040.0,2.07719638]
[1751611893726,0.182,109050.0,109040.0,1.82729359]
[1751611894730,0.182,109050.0,109040.0,1.75399856]
[1751611894931,0.182,109050.0,109040.0,1.84562032]
[1751611901337,0.182,109050.0,109040.0,1.75399856]
[1751611907247,0.182,109050.0,109040.0,1.84562032]
[1751611908246,0.182,109050.0,109040.0,1.75399856]
[1751611908448,0.182,109050.0,109040.0,1.84562032]
[1751611920955,0.002,109050.0,109040.0,1.84562032]
[1751611924256,0.002,109050.0,109040.0,1.34581474]
[1751611924458,0.002,109050.0,109040.0,1.84562032]
[1751611926253,0.002,109050.0,109040.0,2.09552311]
[1751611929956,0.002,109050.0,109040.0,2.00390135]
[1751611930463,0.002,109050.0,109040.0,2.00386135]
[1751611935169,0.002,109050.0,109040.0,1.75395856]
[1751611938771,0.002,109050.0,109040.0,1.84558032]
[1751611939775,0.002,109050.0,109040.0,2.09548311]
[1751611941379,0.002,109050.0,109040.0,2.11264555]
[1751611942780,0.002,109050.0,109040.0,1.86274276]
[1751611945583,0.002,109050.0,109040.0,2.11264555]
[1751611945978,0.002,109050.0,109040.0,2.11261469]
[1751611946581,0.002,109050.0,109040.0,1.8627119]
[1751611947181,0.002,109050.0,109040.0,2.11261469]
[1751611947576,0.002,109050.0,109040.0,1.8627119]
[1751611947773,0.0327,109050.0,109040.0,1.8627119]
[1751611949982,0.0327,109050.0,109040.0,1.8626719]
[1751611950184,0.0327,109050.0,109040.0,1.7672719]
[1751611950377,0.095,109050.0,109040.0,1.7672719]
[1751611957290,0.095,109050.0,109040.0,0.43410632]
[1751611957584,0.095,109050.0,109040.0,1.7672319]
[1751611960584,0.6183384,109050.0,109040.0,0.9339119]
[1751611960792,0.86824119,109050.0,109040.0,1.7672319]
[1751611960993,0.6183384,109050.0,109040.0,1.7672319]
[1751611963285,0.6183384,109050.0,109040.0,1.67561014]
[1751611963684,0.435,109050.0,109040.0,1.67561014]
[1751611964290,0.6183383,109050.0,109040.0,1.67561014]
[1751611966386,0.6183383,109050.0,109040.0,1.74883875]
[1751611966791,0.6183383,109050.0,109040.0,1.67561014]
[1751611967390,0.6183383,109050.0,109040.0,1.17580456]
[1751611967589,0.6183383,109050.0,109040.0,1.67561014]
[1751611967893,0.435,109050.0,109040.0,1.67561014]
[1751611968186,0.435,109050.0,109040.0,1.65847856]
[1751611968392,0.435,109050.0,109040.0,1.75001462]
[1751611970494,0.6183383,109050.0,109040.0,1.75001462]
[1751611970892,0.86824109,109050.0,109040.0,1.75001462]
[1751611971093,0.6183383,109050.0,109040.0,1.75001462]
[1751611972692,0.6183383,109050.0,109040.0,1.61001462]
[1751611975196,0.6183383,109050.0,109040.0,1.90001462]
[1751611975397,0.6183383,109050.0,109040.0,1.40020904]
[1751611975599,0.6183383,109050.0,109040.0,1.90001462]
[1751611976099,0.6183383,109050.0,109040.0,1.61001462]
[1751611976499,0.6183383,109050.0,109040.0,1.67001462]
[1751611976698,0.6183383,109050.0,109040.0,1.90001462]
[1751611978499,0.6183383,109050.0,109040.0,1.66001462]
[1751611978800,0.6183383,109050.0,109040.0,1.88001462]
[1751611979702,0.6183383,109050.0,109040.0,1.38020904]
[1751611979895,0.6183383,109050.0,109040.0,1.88001462]
[1751611981804,0.6183383,109050.0,109040.0,1.38020904]
[1751611981990,0.6183383,109050.0,109040.0,1.88001462]
[1751611983702,0.9791383,109050.0,109040.0,1.88001462]
[1751611984702,0.9791383,109050.0,109040.0,1.04669462]
[1751611985005,0.9791383,109050.0,109040.0,0.83669462]
[1751611985301,0.9791383,109050.0,109040.0,0.33688904]
[1751611985505,0.9791383,109050.0,109040.0,0.83669462]
[1751611986402,0.9791383,109050.0,109040.0,1.05669462]
[1751611986704,0.9791383,109050.0,109040.0,0.83669462]
[1751611987101,0.9791383,109050.0,109040.0,0.77669462]
[1751611987302,0.9791383,109050.0,109040.0,1.04669462]
[1751611988904,0.6183383,109050.0,109040.0,1.04669462]
[1751611989104,0.9791383,109050.0,109040.0,1.04669462]
[1751611993402,0.9791383,109050.0,109040.0,1.07819462]
[1751611993710,0.9791383,109050.0,109040.0,0.57838904]
[1751611994211,0.9791383,109050.0,109040.0,1.07819462]
[1751611996611,0.9791383,109050.0,109040.0,0.98665856]
[1751611997001,0.9791383,109050.0,109040.0,0.48685298]
[1751611997206,0.9791383,109050.0,109040.0,0.98665856]
[1751611998013,0.9791383,109050.0,109040.0,1.07819462]
[1751611999813,0.9791383,109050.0,109040.0,1.05993253]
[1751612002112,1.22904109,109050.0,109040.0,0.54002974]
[1751612002311,1.22904109,109050.0,109040.0,0.25862695]
[1751612002616,1.22904109,109050.0,109040.0,0.50852974]
[1751612003316,2.06216109,109050.0,109040.0,0.25863963]
[1751612004807,1.8122583,109050.0,109040.0,0.25863963]
[1751612005010,2.06216109,109050.0,109040.0,0.50854242]
[1751612005516,2.06216109,109050.0,109040.0,0.25863963]
[1751612005717,2.06216109,109050.0,109040.0,0.50854242]
[1751612010417,2.06216109,109050.0,109040.0,0.25863963]
[1751612010918,1.8122583,109050.0,109040.0,0.25863963]
[1751612011121,2.06216109,109050.0,109040.0,0.50854242]
[1751612015121,2.06216109,109050.0,109040.0,0.43525577]
[1751612015324,2.06216109,109050.0,109040.0,0.18535298]
[1751612015518,2.06216109,109050.0,109040.0,0.43525577]
[1751612022830,2.06216109,109050.0,109040.0,0.18535298]
[1751612023032,2.06216109,109050.0,109040.0,0.43525577]
[1751612024227,1.22904109,109050.0,109040.0,0.43525577]
[1751612025635,1.24793352,109050.0,109040.0,0.43525577]
[1751612027535,1.24793352,109050.0,109040.0,0.49017153]
[1751612029038,1.22904109,109050.0,109040.0,0.49017153]
[1751612029238,1.22904109,109050.0,109040.0,0.43525577]
[1751612029438,1.22904109,109050.0,109040.0,0.49017984]
[1751612029843,0.9791383,109050.0,109040.0,0.49017984]
[1751612030039,1.22904109,109050.0,109040.0,0.49017984]
[1751612030641,0.9791383,109050.0,109040.0,0.49017984]
[1751612030833,1.22904109,109050.0,109040.0,0.49017984]
[1751612031735,0.9791383,109050.0,109040.0,0.49017984]
[1751612031937,1.22904109,109050.0,109040.0,0.49017984]
[1751612034756,1.22904109,109050.0,109040.0,0.24027705]
[1751612034954,1.22904109,109050.0,109040.0,0.49017984]
[1751612037456,1.22904109,109050.0,109040.0,0.43525577]
[1751612038557,1.22904109,109050.0,109040.0,0.68515856]
[1751612038758,0.7028,109050.0,109040.0,1.17028478]
[1751612039050,0.342,109050.0,109040.0,1.73770092]
[1751612039254,0.342,109050.0,109040.0,1.82923698]
[1751612039255,0.002,109050.0,109040.0,1.82923698]
[1751612039958,0.002,109050.0,109040.0,1.57933419]
[1751612040655,0.1853383,109050.0,109040.0,2.41237419]
[1751612041857,0.1853383,109050.0,109040.0,2.05157419]
[1751612042660,0.1853383,109050.0,109040.0,1.96003813]
[1751612042861,0.1853383,109050.0,109040.0,2.41225698]
[1751612043561,0.1853383,109050.0,109040.0,2.32072092]
[1751612045364,0.1853383,109050.0,109040.0,2.39387513]
[1751612045564,0.002,109050.0,109040.0,2.39387513]
[1751612046264,0.002,109050.0,109040.0,2.32035858]
[1751612047560,0.002,109050.0,109040.0,2.39349482]
[1751612047761,0.002,109050.0,109040.0,2.39349526]
[1751612048069,0.002,109050.0,109040.0,2.39350358]
[1751612051957,0.002,109050.0,109040.0,2.14360079]
[1751612052160,0.002,109050.0,109040.0,2.39350358]
[1751612052468,0.002,109050.0,109040.0,2.3203669]
[1751612052961,0.002,109050.0,109040.0,1.82056132]
[1751612053169,0.002,109050.0,109040.0,2.3203669]
[1751612063272,0.002,109050.0,109040.0,1.9595669]
[1751612063471,0.002,109050.0,109040.0,2.3203669]
[1751612067771,0.002,109050.0,109040.0,2.2261669]
[1751612067973,0.002,109050.0,109040.0,2.3235669]
[1751612068573,0.002,109050.0,109040.0,1.82376132]
[1751612068773,0.002,109050.0,109040.0,2.3235669]
[1751612074872,0.0349,109050.0,109040.0,2.3235669]
[1751612077078,0.0349,109050.0,109040.0,2.30639856]
[1751612081281,0.3849,109050.0,109040.0,2.30639856]
[1751612082783,0.3849,109050.0,109040.0,1.80659298]
[1751612082985,0.3849,109050.0,109040.0,2.30639856]
[1751612084884,0.3849,109050.0,109040.0,1.47335856]
[1751612085085,0.3849,109050.0,109040.0,2.30607856]
[1751612086886,0.3849,109050.0,109040.0,1.94527856]
[1751612087088,0.3849,109050.0,109040.0,2.30607856]
[1751612089590,0.0349,109050.0,109040.0,2.30607856]
[1751612094485,0.3549,109050.0,109040.0,2.30607856]
[1751612094687,0.3549,109050.0,109040.0,2.39764118]
[1751612097403,0.0349,109050.0,109040.0,2.39764118]
[1751612109108,0.0349,109050.0,109040.0,1.8978356]
[1751612109308,0.0349,109050.0,109040.0,2.39764118]
[1751612112513,0.0349,109050.0,109040.0,2.03684118]
[1751612112710,0.0349,109050.0,109040.0,2.39764118]
[1751612116116,0.0349,109050.0,109040.0,1.8978356]
[1751612116316,0.0349,109050.0,109040.0,2.39764118]
[1751612120316,0.002,109050.0,109040.0,2.39764118]
[1751612136533,0.002,109050.0,109040.0,1.8978356]
[1751612136734,0.372,109050.0,109040.0,0.6069156]
[1751612137035,0.71890279,109050.0,109040.0,1.93904118]
[1751612137230,0.469,109050.0,109040.0,1.93904118]
[1751612138135,0.099,109050.0,109040.0,1.93904118]
[1751612138327,0.449,109050.0,109040.0,1.93904118]
[1751612138936,0.459,109050.0,109040.0,2.29984118]
[1751612139330,0.459,109050.0,109040.0,2.33174118]
[1751612143138,0.099,109050.0,109040.0,2.33174118]
[1751612143337,0.099,109050.0,109040.0,2.36324118]
[1751612144536,0.459,109050.0,109040.0,2.36324118]
[1751612144738,0.3952,109050.0,109040.0,2.39404118]
[1751612148848,0.0352,109050.0,109040.0,2.39404118]
[1751612149040,0.0352,109050.0,109040.0,2.35742035]
[1751612150248,0.0352,109050.0,109040.0,1.85761477]
[1751612150543,0.0352,109050.0,109040.0,2.35742035]
[1751612156643,0.0352,109050.0,109040.0,2.30247856]
[1751612158348,0.001,109050.0,109040.0,2.30247856]
[1751612159148,0.001,109050.0,109040.0,2.31975267]
[1751612162659,0.001,109050.0,109040.0,2.37468541]
[1751612163159,0.001,109050.0,109040.0,3.0145882]
[1751612163467,0.002,109080.0,109050.0,0.458346]
[1751612163667,0.4591,109080.0,109070.0,0.68311038]
[1751612163852,0.4591,109080.0,109070.0,0.75320759]
[1751612164058,0.4591,109080.0,109070.0,1.38410882]
[1751612164359,0.4266,109080.0,109070.0,1.42920882]
[1751612164562,0.50331292,109080.0,109070.0,1.42920882]
[1751612164966,0.50631292,109080.0,109070.0,1.43020882]
[1751612166359,0.50731292,109080.0,109070.0,1.43020882]
[1751612170870,0.53771292,109080.0,109070.0,1.43020882]
[1751612171371,0.72100092,109080.0,109070.0,1.43020882]
[1751612171669,0.72100092,109080.0,109070.0,1.14740603]
[1751612174365,0.72000092,109080.0,109070.0,1.14740603]
[1751612174573,0.72000092,109080.0,109070.0,1.11600603]
[1751612175875,0.72000092,109080.0,109070.0,0.75520603]
[1751612176067,0.72000092,109080.0,109070.0,1.11600603]
[1751612178576,0.72000092,109080.0,109070.0,0.86610324]
[1751612178770,1.33070371,109080.0,109070.0,0.43520603]
[1751612179079,1.6006065,109080.0,109070.0,0.00199844]
[1751612180576,1.6006065,109080.0,109070.0,0.18530334]
[1751612180776,1.7839665,109080.0,109070.0,0.18530334]
[1751612181877,1.6006065,109080.0,109070.0,0.18530334]
[1751612182077,1.7839665,109080.0,109070.0,0.18530334]
[1751612182877,1.7839665,109080.0,109070.0,0.00199844]
[1751612183977,1.6006065,109080.0,109070.0,0.00199844]
[1751612184172,1.7839665,109080.0,109070.0,0.00199844]
[1751612184681,1.6006065,109080.0,109070.0,0.00199844]
[1751612185380,0.1833049,109070.0,109060.0,0.58796955]
[1751612185580,2.06754769,109070.0,109060.0,0.58796955]
[1751612186581,2.06954769,109070.0,109060.0,0.58796955]
[1751612187479,2.07154769,109070.0,109060.0,0.58796955]
[1751612193687,2.07154769,109070.0,109060.0,0.33806676]
[1751612193890,2.07154769,109070.0,109060.0,0.58796955]
[1751612195591,1.8216449,109070.0,109060.0,0.58796955]
[1751612195784,2.07154769,109070.0,109060.0,0.58896799]
[1751612198291,2.07154769,109070.0,109060.0,0.54313769]
[1751612200595,2.10414769,109070.0,109060.0,0.54313769]
[1751612203797,2.10414769,109070.0,109060.0,0.2932349]
[1751612203997,2.10414769,109070.0,109060.0,0.54313769]
[1751612204299,1.74334769,109070.0,109060.0,0.54313769]
[1751612204498,2.10414769,109070.0,109060.0,0.54313769]
[1751612204898,1.27210769,109070.0,109060.0,0.54313769]
[1751612205099,2.10418769,109070.0,109060.0,0.54313769]
[1751612209402,1.74338769,109070.0,109060.0,0.54313769]
[1751612209608,2.10418769,109070.0,109060.0,0.54313769]
[1751612209910,1.74338769,109070.0,109060.0,0.54313769]
[1751612210114,2.10418769,109070.0,109060.0,0.59804501]
[1751612210604,1.74338769,109070.0,109060.0,0.59804501]